Workbook

Sheet Έναρξη
B1: ΣΧΕΤΙΚΑ ΜΕ ΑΥΤΟ ΤΟ ΠΡΟΤΥΠΟ
B2: Δημιουργήστε ένα οικονομικό πρόγραμμα έναρξης επιχειρηματικών δραστηριοτήτων χρησιμοποιώντας αυτό το πρότυπο.
B3: Αποκτήστε μια συνολική εικόνα ενός οικονομικού προγράμματος στο φύλλο εργασίας "Επισκόπηση".
B4: Χρησιμοποιήστε το πρότυπο κόστους έναρξης και τα φύλλα εργασίας προτύπου P&L για να παρακολουθήσετε λογιστικά τα κόστη και τα κέρδη και τις απώλειες μιας έναρξης.
B5: Το παράδειγμα κόστους έναρξης και τα παραδείγματα φύλλων εργασίας P&L περιέχουν δείγματα δεδομένων σε πίνακες.
B6: Σημείωση:
B7: Στη στήλη A όλων των φύλλων εργασίας παρέχονται πρόσθετες οδηγίες. Αυτό το κείμενο είναι κρυφό σκόπιμα. Για να καταργήσετε το κείμενο, επιλέξτε τη στήλη A και, στη συνέχεια, πατήστε το πλήκτρο DELETE. Για να εμφανίσετε το κείμενο, επιλέξτε τη στήλη A και, στη συνέχεια, αλλάξτε το χρώμα γραμματοσειράς.
B8: Για να μάθετε περισσότερα σχετικά με τους πίνακες, πατήστε το SHIFT και έπειτα F10 σε έναν πίνακα, επιλέξτε "ΠΙΝΑΚΑΣ" και, στη συνέχεια, επιλέξτε "ΕΝΑΛΛΑΚΤΙΚΟ ΚΕΙΜΕΝΟ".

Sheet Επισκόπηση
B1: ΟΙΚΟΝΟΜΙΚΟ ΠΡΟΓΡΑΜΜΑ ΕΝΑΡΞΗΣ ΕΠΙΧΕΙΡΗΣΗΣ
B2: Η δημιουργία ενός οικονομικού προγράμματος αφορά το σημείο εκείνο όπου συνεργάζεται το σύνολο του επιχειρηματικού σχεδιασμού. Αφού προσδιορίσετε το προϊόν σας, την αγορά-στόχο και τους πελάτες-στόχους, μαζί με τις τιμές, είστε έτοιμοι να ξεκινήσετε την πρόβλεψη κόστους, πωλήσεων και κέρδους. Αυτά τα στοιχεία μαζί με τις υποθέσεις σας, θα σας βοηθήσουν να κάνετε εκτίμηση της πρόβλεψης πωλήσεων. Από την άλλη πλευρά της επιχειρηματικότητας θα είναι τα έξοδα που αναμένετε να προκύψουν. Αυτό είναι σημαντικό σε μόνιμη βάση για να προσδιοριστεί τις χρονικές συγκυρίες που είστε κερδοφόροι. Κατά την έναρξη της επιχείρησής σας, είναι επίσης σημαντικό να γνωρίζετε τα έξοδα που θα πρέπει να καλύψετε πριν αρχίσετε να λαμβάνετε μετρητά από τις πωλήσεις πελατών που θα προκύψουν.
B3: Προβλεπόμενα κόστη έναρξης: Ο πίνακας στην επόμενη καρτέλα, Πρότυπο κόστους έναρξης, παρέχει ένα κενό πρότυπο με κάποιες οδηγίες για την έναρξη. Στην επόμενη καρτέλα, Παράδειγμα κόστους έναρξης, εμφανίζεται ένα δείγμα στοιχείων συνεχούς και εφάπαξ κόστους που ίσως χρειαστείτε για να κάνετε έναρξη επιχείρησης. Πολλές επιχειρήσεις πληρώνονται με πίστωση με την πάροδο του χρόνου και δεν εισπράττουν μετρητά άμεσα. Είναι σημαντικό να γίνει εκτίμηση της χρονικής στιγμής που θα αρχίσουν τα μετρητά να εισέρχονται στην εταιρεία κάνοντας μια υπόθεση σχετικά με το πόσοι μήνες επαναλαμβανόμενων στοιχείων, εκτός από τις εφάπαξ δαπάνες, θα πρέπει να χρηματοδοτηθούν από αποταμιεύσεις ή από μια αρχική επένδυση.
B4: Προβλεπόμενο μοντέλο Κέρδους και Ζημιάς: Στην καρτέλα, ετικέτα πρότυπου P&L, θα βρείτε ένα κενό πρότυπο για να διενεργήσετε Πρόβλεψη πωλήσεων και ένα Μοντέλο Κέρδους και Ζημίας. Η επόμενη καρτέλα, Παράδειγμα P&L, εμφανίζει ένα δείγμα των προβολών που προβλέπει μια μικρή επιχείρηση για τους πρώτους 12 μήνες λειτουργίας της. Το επάνω μέρος του πίνακα κάθε μοντέλου εμφανίζει τις προβλεπόμενες πωλήσεις και τα μικτά κέρδη. Αυτό αποτελεί ένα καλό σημείο για να ξεκινήσετε τη δημιουργία μιας πρόβλεψης πωλήσεων. Η επόμενη ενότητα, που θα βρείτε παρακάτω, παραθέτει τα περιοδικά έξοδα που προβάλλετε για τους ίδιους μήνες. Αυτά θα πρέπει να συμφωνούν με το εκτιμώμενο κόστος έναρξης που ολοκληρώσατε στην προηγούμενη ενότητα. Στο κάτω μέρος αυτού του μοντέλου, θα αρχίσετε να βλέπετε πότε η επιχείρησή σας γίνεται κερδοφόρα και ποια στοιχεία δαπανών επηρεάζουν περισσότερο την κερδοφορία σας.
B5: Παρακολουθήστε τις υποθέσεις που κάνετε αναφορικά με την εκτίμηση των εσόδων και του κόστους των προϊόντων που πωλήθηκαν. Για επιχειρήσεις που δεν έχουν αρχίσει να λειτουργούν ακόμα, θα πρέπει να κατανοήσετε πώς μπορείτε να προβείτε σε εκτιμήσεις αναφορικά με το προϊόν ή την υπηρεσία σας. Ακολουθούν ορισμένες κατευθυντήριες γραμμές:
B6: Έσοδα: Ξεκινήστε προσδιορίζοντας, στηριζόμενοι στην αγορά-στόχο (ομάδα δυνητικών πελατών, επιχειρήσεων ή καταναλωτών), πόσοι από αυτούς θα αποτελούσαν στόχο κατά το πρώτο έτος. Τι ποσοστό εξ αυτών αναμένετε ότι θα κλείσετε; Ποια είναι μια μέση συναλλαγή για αυτούς ώστε να αγοράσουν το προϊόν ή την υπηρεσία σας; Πόσα μπορείτε να κάνετε κατά τον πρώτο μήνα, τον δεύτερο και ούτω καθεξής; Μπορεί να θέλετε να ξεκινήσετε καθορίζοντας έναν αριθμό για τον πρώτο μήνα και να τον αυξήσετε κατά ένα ποσοστό, ας υποθέσουμε 10%. Για παράδειγμα, εάν παρέχετε υπηρεσίες καθαρισμού σε μικρές επιχειρήσεις στην πόλη σας και υπάρχουν 500 επιχειρήσεις που πιστεύετε ότι χρειάζονται αυτή την υπηρεσία. Εάν η μέση σύμβαση υπολογίζεται στα 250 $/μήνα, τότε πρέπει να υπολογίσετε με πόσες επιχειρήσεις μπορείτε να υπογράψετε ένα συμβόλαιο συνεργασίας για κάθε μήνα του πρώτου έτους.
B7: Κόστος πωληθέντων προϊόντων (ΚΠΠ): Αυτό θα πρέπει να υπολογιστεί για προϊόντα και ορισμένες υπηρεσίες. Αφορά το κόστος που συμπεριλαμβάνεται για την παραγωγή του προϊόντος. Για παράδειγμα, εάν εμπορεύεστε είδη ένδυσης, το ΚΠΠ θα αντιστοιχεί στην τιμή που πληρώσατε για να αγοράσετε τα είδη ένδυσης από τον κατασκευαστή. Εάν εσείς είστε η παραγωγός εταιρεία, θα αντιστοιχούσε στο κόστος των υλικών και της εργασίας για να τα φτιάξετε. Για τις υπηρεσίες, θα αντιστοιχούσε στο άμεσο κόστος εργασίας για μία ώρα πραγματικής εργασίας. Οτιδήποτε κάτω του Μεικτού κέρδους στο P&L είναι σταθερά ή γενικά έξοδα που αφορούν ολόκληρη την επιχείρηση, όπως το ενοίκιο ή το τηλέφωνο ή ακόμη και τα έξοδα μάρκετινγκ.

Sheet Πρότυπο κόστους έναρξης
B1: ΚΟΣΤΗ ΕΝΑΡΞΗΣ
B2: Η καφετέριά σας | C2: =TODAY() -> 2022-01-14
B4: ΚΟΣΤΟΣ ΑΝΑ ΤΕΜΑΧΙΟ | C4: ΜΗΝΕΣ | D4: ΚΟΣΤΟΣ/ΜΗΝΑ | E4: ΕΦΑΠΑΞ ΚΟΣΤΟΣ | F4: ΣΥΝΟΛΙΚΟ ΚΟΣΤΟΣ
B5: Διαφημίσεις/Μάρκετινγκ | F5: =(C5*D5)+IF(E5>0,E5,0) -> 0 €
B6: Μισθοί υπαλλήλων | F6: =(C6*D6)+IF(E6>0,E6,0) -> 0 €
B7: Φόροι Μισθωτών Υπαλλήλων | F7: 0 €
B8: Ενοίκιο/Μισθώματα/Υπηρεσίες Κοινής Ωφέλειας | F8: 0 €
B9: Ταχυδρομικά τέλη/Αποστολή | F9: 0 €
B10: ΕΚΤΙΜΩΜΕΝΟΣ ΠΡΟΫΠΟΛΟΓΙΣΜΟΣ ΕΝΑΡΞΗΣ | F10: =SUBTOTAL(109,Έναρξη[ΣΥΝΟΛΙΚΟ ΚΟΣΤΟΣ]) -> 0

Sheet Παράδειγμα κόστους έναρξης
B1: ΚΟΣΤΗ ΕΝΑΡΞΗΣ
B2: ='Πρότυπο κόστους έναρξης'!B2 -> Η καφετέριά σας | C2: =TODAY() -> 2022-01-14
B4: ΚΟΣΤΟΣ ΑΝΑ ΤΕΜΑΧΙΟ | C4: ΜΗΝΕΣ | D4: ΚΟΣΤΟΣ/ΜΗΝΑ | E4: ΕΦΑΠΑΞ ΚΟΣΤΟΣ | F4: ΣΥΝΟΛΙΚΟ ΚΟΣΤΟΣ
B5: Διαφημίσεις/Μάρκετινγκ | C5: 3 | D5: 300 € | E5: 2,000 € | F5: =(C5*D5)+IF(E5>0,E5,0) -> 2,900 €
B6: Μισθοί υπαλλήλων | C6: 4 | D6: 3,500 € | E6: 2 € | F6: =(C6*D6)+IF(E6>0,E6,0) -> 14,002 €
B7: Φόροι Μισθωτών Υπαλλήλων | C7: 4 | D7: 500 € | E7: 2,000 € | F7: 4,000 €
B8: Ενοίκιο/Μισθώματα/Υπηρεσίες Κοινής Ωφέλειας | C8: 4 | D8: 750 € | E8: 3,000 € | F8: 6,000 €
B9: Ταχυδρομικά τέλη/Αποστολή | C9: 1 | D9: 25 € | E9: 25 € | F9: 50 €
B10: ΕΚΤΙΜΩΜΕΝΟΣ ΠΡΟΫΠΟΛΟΓΙΣΜΟΣ ΕΝΑΡΞΗΣ | F10: =SUM(F6:F9) -> 24,052 €

Sheet Πρότυπο P&L
B1: ΚΟΣΤΗ ΕΝΑΡΞΗΣ
B2: ='Πρότυπο κόστους έναρξης'!B2 -> Η καφετέριά σας | C2: =TODAY() -> 2022-01-14
B4: ΈΣΟΔΑ | C4: ΙΑΝ | D4: ΦΕΒ | E4: ΜΑΡ | F4: ΑΠΡ | G4: ΜΑΪΟΣ | H4: ΙΟΥΝ | I4: ΙΟΥΛ | J4: ΑΥΓ | K4: ΣΕΠ | L4: ΟΚΤ | M4: ΝΟΕ | N4: ΔΕΚ | O4: Σωρευτικό Έτους
B5: Εκτιμώμενες πωλήσεις προϊόντων | C5: 0 € | D5: 0 € | E5: 0 € | F5: 0 € | G5: 0 € | H5: 0 € | I5: 0 € | J5: 0 € | K5: 0 € | L5: 0 € | M5: 0 € | N5: 0 € | O5: =SUM(C5:N5) -> 0 €
B6: Λιγότερες επιστροφές πωλήσεων & Εκπτώσεις | C6: 0 € | D6: 0 € | E6: 0 € | F6: 0 € | G6: 0 € | H6: 0 € | I6: 0 € | J6: 0 € | K6: 0 € | L6: 0 € | M6: 0 € | N6: 0 € | O6: =SUM(C6:N6) -> 0 €
B7: Έσοδα υπηρεσίας | C7: 0 € | D7: 0 € | E7: 0 € | F7: 0 € | G7: 0 € | H7: 0 € | I7: 0 € | J7: 0 € | K7: 0 € | L7: 0 € | M7: 0 € | N7: 0 € | O7: 0 €
B8: Άλλα έσοδα | C8: 0 € | D8: 0 € | E8: 0 € | F8: 0 € | G8: 0 € | H8: 0 € | I8: 0 € | J8: 0 € | K8: 0 € | L8: 0 € | M8: 0 € | N8: 0 € | O8: 0 €
B9: Καθαρές πωλήσεις | C9: =SUBTOTAL(109,ΔείγμαΕσόδων[ΙΑΝ]) -> 0 € | D9: =SUBTOTAL(109,ΔείγμαΕσόδων[ΦΕΒ]) -> 0 € | E9: =SUBTOTAL(109,ΔείγμαΕσόδων[ΜΑΡ]) -> 0 € | F9: =SUBTOTAL(109,ΔείγμαΕσόδων[ΑΠΡ]) -> 0 € | G9: =SUBTOTAL(109,ΔείγμαΕσόδων[ΜΑΪΟΣ]) -> 0 € | H9: =SUBTOTAL(109,ΔείγμαΕσόδων[ΙΟΥΝ]) -> 0 € | I9: =SUBTOTAL(109,ΔείγμαΕσόδων[ΙΟΥΛ]) -> 0 € | J9: =SUBTOTAL(109,ΔείγμαΕσόδων[ΑΥΓ]) -> 0 € | K9: =SUBTOTAL(109,ΔείγμαΕσόδων[ΣΕΠ]) -> 0 € | L9: =SUBTOTAL(109,ΔείγμαΕσόδων[ΟΚΤ]) -> 0 € | M9: =SUBTOTAL(109,ΔείγμαΕσόδων[ΝΟΕ]) -> 0 € | N9: =SUBTOTAL(109,ΔείγμαΕσόδων[ΔΕΚ]) -> 0 € | O9: =SUM(ΔείγμαΕσόδων[[#Totals],[ΙΑΝ]:[ΔΕΚ]]) -> 0 €
B10: Κόστος πωληθέντων προϊόντων | C10: =C5*0.4 -> 0 € | D10: 0 € | E10: 0 € | F10: 0 € | G10: 0 € | H10: 0 € | I10: 0 € | J10: 0 € | K10: 0 € | L10: 0 € | M10: 0 € | N10: 0 € | O10: 0 €
B11: Μεικτό κέρδος | C11: =IFERROR(ΔείγμαΕσόδων[[#Totals],[ΙΑΝ]]-C10,"") -> 0 € | D11: =IFERROR(ΔείγμαΕσόδων[[#Totals],[ΦΕΒ]]-D10,"") -> 0 € | E11: =IFERROR(ΔείγμαΕσόδων[[#Totals],[ΜΑΡ]]-E10,"") -> 0 € | F11: =IFERROR(ΔείγμαΕσόδων[[#Totals],[ΑΠΡ]]-F10,"") -> 0 € | G11: =IFERROR(ΔείγμαΕσόδων[[#Totals],[ΜΑΪΟΣ]]-G10,"") -> 0 € | H11: =IFERROR(ΔείγμαΕσόδων[[#Totals],[ΙΟΥΝ]]-H10,"") -> 0 € | I11: =IFERROR(ΔείγμαΕσόδων[[#Totals],[ΙΟΥΛ]]-I10,"") -> 0 € | J11: =IFERROR(ΔείγμαΕσόδων[[#Totals],[ΑΥΓ]]-J10,"") -> 0 € | K11: =IFERROR(ΔείγμαΕσόδων[[#Totals],[ΣΕΠ]]-K10,"") -> 0 € | L11: =IFERROR(ΔείγμαΕσόδων[[#Totals],[ΟΚΤ]]-L10,"") -> 0 € | M11: =IFERROR(ΔείγμαΕσόδων[[#Totals],[ΝΟΕ]]-M10,"") -> 0 € | N11: =IFERROR(ΔείγμαΕσόδων[[#Totals],[ΔΕΚ]]-N10,"") -> 0 € | O11: 0 €
B13: ΕΞΟΔΑ | C13: ΙΑΝ | D13: ΦΕΒ | E13: ΜΑΡ | F13: ΑΠΡ | G13: ΜΑΪΟΣ | H13: ΙΟΥΝ | I13: ΙΟΥΛ | J13: ΑΥΓ | K13: ΣΕΠ | L13: ΟΚΤ | M13: ΝΟΕ | N13: ΔΕΚ | O13: Σωρευτικό Έτους
B14: Μισθοδοσία | C14: 0 € | D14: 0 € | E14: 0 € | F14: 0 € | G14: 0 € | H14: 0 € | I14: 0 € | J14: 0 € | K14: 0 € | L14: 0 € | M14: 0 € | N14: 0 € | O14: =SUM(C14:N14) -> 0 €
B15: Μάρκετινγκ/Διαφημίσεις | C15: 0 € | D15: 0 € | E15: 0 € | F15: 0 € | G15: 0 € | H15: 0 € | I15: 0 € | J15: 0 € | K15: 0 € | L15: 0 € | M15: 0 € | N15: 0 € | O15: =SUM(C15:N15) -> 0 €
B16: Προμήθειες πωλήσεων | C16: 0 € | D16: 0 € | E16: 0 € | F16: 0 € | G16: 0 € | H16: 0 € | I16: 0 € | J16: 0 € | K16: 0 € | L16: 0 € | M16: 0 € | N16: 0 € | O16: 0 €
B17: Ενοίκιο | C17: 0 € | D17: 0 € | E17: 0 € | F17: 0 € | G17: 0 € | H17: 0 € | I17: 0 € | J17: 0 € | K17: 0 € | L17: 0 € | M17: 0 € | N17: 0 € | O17: 0 €
B18: Άλλα 1 | C18: 0 € | D18: 0 € | E18: 0 € | F18: 0 € | G18: 0 € | H18: 0 € | I18: 0 € | J18: 0 € | K18: 0 € | L18: 0 € | M18: 0 € | N18: 0 € | O18: 0 €
B19: Συνολικά έξοδα | C19: =IF(SUM(C14:C18)=0,"",SUM(C14:C18)) ->  | O19: =SUM(ΔείγμαΕσόδων[[#Totals],[ΙΑΝ]:[ΔΕΚ]]) -> 0 €
B20: Έσοδα προ φόρων | C20: =IFERROR('Πρότυπο P&L'!$C$11-ΔείγμαΕσόδων_1[[#Totals],[ΙΑΝ]],"") ->  | D20: =IFERROR('Πρότυπο P&L'!$C$11-ΔείγμαΕσόδων_1[[#Totals],[ΦΕΒ]],"") ->  | E20: =IFERROR('Πρότυπο P&L'!$C$11-ΔείγμαΕσόδων_1[[#Totals],[ΜΑΡ]],"") ->  | F20: =IFERROR('Πρότυπο P&L'!$C$11-ΔείγμαΕσόδων_1[[#Totals],[ΑΠΡ]],"") ->  | G20: =IFERROR('Πρότυπο P&L'!$C$11-ΔείγμαΕσόδων_1[[#Totals],[ΜΑΪΟΣ]],"") ->  | H20: =IFERROR('Πρότυπο P&L'!$C$11-ΔείγμαΕσόδων_1[[#Totals],[ΙΟΥΝ]],"") ->  | I20: =IFERROR('Πρότυπο P&L'!$C$11-ΔείγμαΕσόδων_1[[#Totals],[ΙΟΥΛ]],"") ->  | J20: =IFERROR('Πρότυπο P&L'!$C$11-ΔείγμαΕσόδων_1[[#Totals],[ΑΥΓ]],"") ->  | K20: =IFERROR('Πρότυπο P&L'!$C$11-ΔείγμαΕσόδων_1[[#Totals],[ΣΕΠ]],"") ->  | L20: =IFERROR('Πρότυπο P&L'!$C$11-ΔείγμαΕσόδων_1[[#Totals],[ΟΚΤ]],"") ->  | M20: =IFERROR('Πρότυπο P&L'!$C$11-ΔείγμαΕσόδων_1[[#Totals],[ΝΟΕ]],"") ->  | N20: =IFERROR('Πρότυπο P&L'!$C$11-ΔείγμαΕσόδων_1[[#Totals],[ΔΕΚ]],"") ->  | O20: 0 €
B21: Έξοδα φόρου εισοδήματος | C21: =IFERROR(C20*0.15," ") ->  | D21: =IFERROR(D20*0.15," ") ->  | E21: =IFERROR(E20*0.15," ") ->  | O21: =SUM('Πρότυπο P&L'!$C$21:$N$21) -> 0 €
B23: ΚΑΘΑΡΟ ΕΙΣΟΔΗΜΑ | C23: =IFERROR(C20-'Πρότυπο P&L'!$C$21,"") ->  | D23: =IFERROR(D20-'Πρότυπο P&L'!$D$21,"") ->  | E23: =IFERROR(E20-'Πρότυπο P&L'!$E$21,"") ->  | F23: =IFERROR(F20-'Πρότυπο P&L'!$F$21,"") ->  | G23: =IFERROR(G20-'Πρότυπο P&L'!$G$21,"") ->  | H23: =IFERROR(H20-'Πρότυπο P&L'!$H$21,"") ->  | I23: =IFERROR(I20-'Πρότυπο P&L'!$I$21,"") ->  | J23: =IFERROR(J20-'Πρότυπο P&L'!$J$21,"") ->  | K23: =IFERROR(K20-'Πρότυπο P&L'!$K$21,"") ->  | L23: =IFERROR(L20-'Πρότυπο P&L'!$L$21,"") ->  | M23: =IFERROR(M20-'Πρότυπο P&L'!$M$21,"") ->  | N23: =IFERROR(N20-'Πρότυπο P&L'!$N$21,"") ->  | O23: =IFERROR(O20-'Πρότυπο P&L'!$O$21,"") -> 0 €

Sheet Παράδειγμα P&L
B1: ΚΟΣΤΗ ΕΝΑΡΞΗΣ
B2: ='Πρότυπο κόστους έναρξης'!B2 -> Η καφετέριά σας | C2: =TODAY() -> 2022-01-14
B4: ΈΣΟΔΑ | C4: ΙΑΝ | D4: ΦΕΒ | E4: ΜΑΡ | F4: ΑΠΡ | G4: ΜΑΪΟΣ | H4: ΙΟΥΝ | I4: ΙΟΥΛ | J4: ΑΥΓ | K4: ΣΕΠ | L4: ΟΚΤ | M4: ΝΟΕ | N4: ΔΕΚ | O4: Σωρευτικό Έτους
B5: Εκτιμώμενες πωλήσεις προϊόντων | C5: 5,000 € | D5: 13,000 € | E5: 16,000 € | F5: 7,000 € | G5: 14,500 € | H5: 16,400 € | I5: 22,500 € | J5: 23,125 € | K5: 24,549 € | L5: 22,000 € | M5: 25,000 € | N5: 27,349 € | O5: =SUM(C5:N5) -> 216,423 €
B6: Λιγότερες επιστροφές πωλήσεων & Εκπτώσεις | C6: 0 € | D6: -350 € | E6: 0 € | F6: -206 € | G6: -234 € | H6: 0 € | I6: 0 € | J6: -280 € | K6: -1,200 € | L6: -1,600 € | M6: 0 € | N6: -2,400 € | O6: =SUM(C6:N6) -> -6,270 €
B7: Έσοδα υπηρεσίας | C7: 0 € | D7: 0 € | E7: 0 € | F7: 0 € | G7: 0 € | H7: 250 € | I7: 350 € | J7: 100 € | K7: 0 € | L7: 0 € | M7: 1,245 € | N7: 1,360 € | O7: 3,305 €
B8: Άλλα έσοδα | C8: 0 € | D8: 0 € | E8: 0 € | F8: 0 € | G8: 0 € | H8: 0 € | I8: 0 € | J8: 1,500 € | K8: 0 € | L8: 0 € | M8: 0 € | N8: 0 € | O8: 1,500 €
B9: Καθαρές πωλήσεις | C9: =SUBTOTAL(109,ΠραγματικάΈσοδα[ΙΑΝ]) -> 5,000 € | D9: =SUBTOTAL(109,ΠραγματικάΈσοδα[ΦΕΒ]) -> 12,650 € | E9: =SUBTOTAL(109,ΠραγματικάΈσοδα[ΜΑΡ]) -> 16,000 € | F9: =SUBTOTAL(109,ΠραγματικάΈσοδα[ΑΠΡ]) -> 6,794 € | G9: =SUBTOTAL(109,ΠραγματικάΈσοδα[ΜΑΪΟΣ]) -> 14,266 € | H9: =SUBTOTAL(109,ΠραγματικάΈσοδα[ΙΟΥΝ]) -> 16,650 € | I9: =SUBTOTAL(109,ΠραγματικάΈσοδα[ΙΟΥΛ]) -> 22,850 € | J9: =SUBTOTAL(109,ΠραγματικάΈσοδα[ΑΥΓ]) -> 24,445 € | K9: =SUBTOTAL(109,ΠραγματικάΈσοδα[ΣΕΠ]) -> 23,349 € | L9: =SUBTOTAL(109,ΠραγματικάΈσοδα[ΟΚΤ]) -> 20,400 € | M9: =SUBTOTAL(109,ΠραγματικάΈσοδα[ΝΟΕ]) -> 26,245 € | N9: =SUBTOTAL(109,ΠραγματικάΈσοδα[ΔΕΚ]) -> 26,309 € | O9: =SUM(ΠραγματικάΈσοδα[[#Totals],[ΙΑΝ]:[ΔΕΚ]]) -> 214,958 €
B10: Κόστος πωληθέντων προϊόντων | C10: =C5*0.4 -> 2,000 € | D10: 5,200 € | E10: 6,400 € | F10: 2,800 € | G10: 5,800 € | H10: 6,560 € | I10: 9,000 € | J10: 9,250 € | K10: 9,820 € | L10: 8,800 € | M10: 10,000 € | N10: 10,940 € | O10: 86,569 €
B11: Μεικτό κέρδος | C11: =IFERROR(ΠραγματικάΈσοδα[[#Totals],[ΙΑΝ]]-C10,"") -> 3,000 € | D11: =IFERROR(ΠραγματικάΈσοδα[[#Totals],[ΦΕΒ]]-D10,"") -> 7,450 € | E11: =IFERROR(ΠραγματικάΈσοδα[[#Totals],[ΜΑΡ]]-E10,"") -> 9,600 € | F11: =IFERROR(ΠραγματικάΈσοδα[[#Totals],[ΑΠΡ]]-F10,"") -> 3,994 € | G11: =IFERROR(ΠραγματικάΈσοδα[[#Totals],[ΜΑΪΟΣ]]-G10,"") -> 8,466 € | H11: =IFERROR(ΠραγματικάΈσοδα[[#Totals],[ΙΟΥΝ]]-H10,"") -> 10,090 € | I11: =IFERROR(ΠραγματικάΈσοδα[[#Totals],[ΙΟΥΛ]]-I10,"") -> 13,850 € | J11: =IFERROR(ΠραγματικάΈσοδα[[#Totals],[ΑΥΓ]]-J10,"") -> 15,195 € | K11: =IFERROR(ΠραγματικάΈσοδα[[#Totals],[ΣΕΠ]]-K10,"") -> 13,529 € | L11: =IFERROR(ΠραγματικάΈσοδα[[#Totals],[ΟΚΤ]]-L10,"") -> 11,600 € | M11: =IFERROR(ΠραγματικάΈσοδα[[#Totals],[ΝΟΕ]]-M10,"") -> 16,245 € | N11: =IFERROR(ΠραγματικάΈσοδα[[#Totals],[ΔΕΚ]]-N10,"") -> 15,369 € | O11: 128,389 €
B13: ΕΞΟΔΑ | C13: ΙΑΝ | D13: ΦΕΒ | E13: ΜΑΡ | F13: ΑΠΡ | G13: ΜΑΪΟΣ | H13: ΙΟΥΝ | I13: ΙΟΥΛ | J13: ΑΥΓ | K13: ΣΕΠ | L13: ΟΚΤ | M13: ΝΟΕ | N13: ΔΕΚ | O13: Σωρευτικό Έτους
B14: Μισθοδοσία | C14: 2,500 € | D14: 2,500 € | E14: 3,500 € | F14: 5,000 € | G14: 5,000 € | H14: 5,000 € | I14: 8,000 € | J14: 9,000 € | K14: 9,000 € | L14: 9,000 € | M14: 9,000 € | N14: 9,000 € | O14: =SUM(C14:N14) -> 76,500 €
B15: Μάρκετινγκ/Διαφημίσεις | C15: 400 € | D15: 450 € | E15: 450 € | F15: 450 € | G15: 900 € | H15: 900 € | I15: 900 € | J15: 900 € | K15: 900 € | L15: 900 € | M15: 1,200 € | N15: 1,200 € | O15: =SUM(C15:N15) -> 9,550 €
B16: Προμήθειες πωλήσεων | C16: 250 € | D16: 650 € | E16: 800 € | F16: 350 € | G16: 725 € | H16: 820 € | I16: 1,125 € | J16: 1,156 € | K16: 1,227 € | L16: 1,100 € | M16: 1,250 € | N16: 1,367 € | O16: 10,821 €
B17: Ενοίκιο | C17: 1,250 € | D17: 1,250 € | E17: 1,250 € | F17: 1,250 € | G17: 1,250 € | H17: 1,250 € | I17: 1,250 € | J17: 1,250 € | K17: 1,250 € | L17: 1,250 € | M17: 1,250 € | N17: 1,250 € | O17: 15,000 €
B18: Συνολικά έξοδα | C18: =IF(SUM(C14:C17)=0,"",SUM(C14:C17)) -> 4,400 € | D18: 4,850 € | E18: 6,000 € | F18: 7,050 € | G18: 7,875 € | H18: 7,970 € | I18: 11,275 € | J18: 12,306 € | K18: 12,377 € | L18: 12,250 € | M18: 12,700 € | N18: 12,817 € | O18: =SUM(ΠραγματικάΈξοδα[[#Totals],[ΙΑΝ]:[ΔΕΚ]]) -> 111,871 €
B19: Έσοδα προ φόρων | C19: =IFERROR('Παράδειγμα P&L'!$C$11-ΠραγματικάΈξοδα[[#Totals],[ΙΑΝ]],"") -> -1,400 € | D19: =IFERROR('Παράδειγμα P&L'!$D$11-ΠραγματικάΈξοδα[[#Totals],[ΦΕΒ]],"") -> 2,600 € | E19: =IFERROR('Παράδειγμα P&L'!$E$11-ΠραγματικάΈξοδα[[#Totals],[ΜΑΡ]],"") -> 3,600 € | F19: =IFERROR('Παράδειγμα P&L'!$F$11-ΠραγματικάΈξοδα[[#Totals],[ΑΠΡ]],"") -> -3,056 € | G19: =IFERROR('Παράδειγμα P&L'!$G$11-ΠραγματικάΈξοδα[[#Totals],[ΜΑΪΟΣ]],"") -> 591 € | H19: =IFERROR('Παράδειγμα P&L'!$H$11-ΠραγματικάΈξοδα[[#Totals],[ΙΟΥΝ]],"") -> 2,120 € | I19: =IFERROR('Παράδειγμα P&L'!$I$11-ΠραγματικάΈξοδα[[#Totals],[ΙΟΥΛ]],"") -> 2,575 € | J19: =IFERROR('Παράδειγμα P&L'!$J$11-ΠραγματικάΈξοδα[[#Totals],[ΑΥΓ]],"") -> 2,889 € | K19: =IFERROR('Παράδειγμα P&L'!$K$11-ΠραγματικάΈξοδα[[#Totals],[ΣΕΠ]],"") -> 1,152 € | L19: =IFERROR('Παράδειγμα P&L'!$L$11-ΠραγματικάΈξοδα[[#Totals],[ΟΚΤ]],"") -> -650 € | M19: =IFERROR('Παράδειγμα P&L'!$M$11-ΠραγματικάΈξοδα[[#Totals],[ΝΟΕ]],"") -> 3,545 € | N19: =IFERROR('Παράδειγμα P&L'!$N$11-ΠραγματικάΈξοδα[[#Totals],[ΔΕΚ]],"") -> 2,552 € | O19: =SUM(C19:N19) -> 16,518 €
B20: Έξοδα φόρου εισοδήματος | C20: =C19*0.15 -> -210 € | D20: 390 € | E20: =E19*0.15 -> 540 € | F20: =F19*0.15 -> -458 € | G20: =G19*0.15 -> 89 € | H20: =H19*0.15 -> 318 € | I20: =I19*0.15 -> 386 € | J20: =J19*0.15 -> 433 € | K20: =K19*0.15 -> 173 € | L20: =L19*0.15 -> -98 € | M20: =M19*0.15 -> 532 € | N20: =N19*0.15 -> 383 € | O20: =SUM('Παράδειγμα P&L'!$C$20:$N$20) -> 2,478 €
B22: ΚΑΘΑΡΟ ΕΙΣΟΔΗΜΑ | C22: =IFERROR(C19-'Παράδειγμα P&L'!$C$20," ") -> -1,190 € | D22: =IFERROR(D19-'Παράδειγμα P&L'!$D$20," ") -> 2,210 € | E22: =IFERROR(E19-'Παράδειγμα P&L'!$E$20,"") -> 3,060 € | F22: =IFERROR(F19-'Παράδειγμα P&L'!$F$20,"") -> -2,598 € | G22: =IFERROR(G19-'Παράδειγμα P&L'!$G$20,"") -> 502 € | H22: =IFERROR(H19-'Παράδειγμα P&L'!$H$20,"") -> 1,802 € | I22: =IFERROR(I19-'Παράδειγμα P&L'!$I$20,"") -> 2,189 € | J22: =IFERROR(J19-'Παράδειγμα P&L'!$J$20,"") -> 2,455 € | K22: =IFERROR(K19-'Παράδειγμα P&L'!$K$20,"") -> 979 € | L22: =IFERROR(L19-'Παράδειγμα P&L'!$L$20,"") -> -553 € | M22: =IFERROR(M19-'Παράδειγμα P&L'!$M$20,"") -> 3,013 € | N22: =IFERROR(N19-'Παράδειγμα P&L'!$N$20,"") -> 2,169 € | O22: =IFERROR(O19-'Παράδειγμα P&L'!$O$20,"") -> 14,040 €
